bitfinex-derivatives/quotes_ETHF0:USTF0_20240830
["timestamp","ask_amount","ask_price","bid_price","bid_amount"]
[1724995026817,0.00381202,2509.9,2509.3,0.39848]
[1724995027019,0.00381202,2509.9,2509.5,3.2078]
[1724995027216,3.2078,2509.7,2509.1,3.2078]
[1724995027722,4.51338273,2509.6,2509.1,3.2078]
[1724995027917,0.39845,2509.6,2509.1,3.2078]
[1724995028119,4.43933849,2509.6,2509.1,3.2078]
[1724995028824,4.83778849,2509.6,2509.1,3.2078]
[1724995029313,8.42413849,2509.6,2509.1,3.2078]
[1724995029626,0.39849,2509.4,2509.1,3.2078]
[1724995029815,0.39849,2509.3,2508.6,0.00598755]
[1724995030011,4.52418505,2509.3,2508.8,3.2078]
[1724995030215,3.2078,2509.4,2508.8,3.60637]
[1724995030419,3.2078,2509.4,2508.8,3.2078]
[1724995030721,3.2078,2509.4,2508.9,0.39854]
[1724995030919,3.2078,2509.4,2508.8,3.2078]
[1724995031115,3.2078,2509.4,2508.6,0.00598755]
[1724995031618,0.39852,2509.2,2508.6,0.00598755]
[1724995031823,3.60629,2509.4,2508.6,0.40458755]
[1724995032020,3.2078,2509.4,2508.6,0.00598755]
[1724995032614,0.00381202,2509.9,2508.8,3.2078]
[1724995032825,0.3742,2510.4,2509.8,3.2078]
[1724995033016,0.39842,2509.8,2509.5,3.2078]
[1724995033319,3.2078,2510.2,2509.0,3.2078]
[1724995033320,0.39844,2509.6,2509.0,3.2078]
[1724995033520,3.2078,2510.2,2509.0,3.2078]
[1724995033720,0.39838,2510.0,2509.3,3.2078]
[1724995033926,0.26974583,2510.1,2509.4,0.00597538]
[1724995034136,0.39842,2509.8,2509.4,0.00597538]
[1724995034317,0.26974583,2510.1,2509.4,0.00597538]
[1724995034727,3.2078,2509.9,2509.4,0.00597538]
[1724995035127,4.52283874,2509.8,2509.4,0.00597538]
[1724995035625,0.39845,2509.6,2509.4,0.00597538]
[1724995035816,3.2078,2509.6,2508.6,3.2078]
[1724995036019,0.3696,2510.3,2508.6,3.2078]
[1724995036020,3.2078,2509.3,2508.6,3.2078]
[1724995036238,3.2078,2509.0,2508.1,3.2078]
[1724995036426,0.39863,2508.5,2508.1,3.2078]
[1724995036723,0.39861,2508.6,2508.1,3.2078]
[1724995036925,0.00593483,2508.6,2508.1,3.60648]
[1724995037831,0.40454483,2508.6,2508.1,3.2078]
[1724995038151,0.00593483,2508.6,2508.1,3.60647]
[1724995038321,0.00593483,2508.6,2508.2,0.39866]
[1724995038722,0.00593483,2508.6,2508.3,0.39865]
[1724995038934,0.00593483,2508.6,2508.4,3.2078]
[1724995040034,0.00593483,2508.6,2508.0,0.00597538]
[1724995040035,0.00593483,2508.6,2508.0,0.40466538]
[1724995040240,0.40454483,2508.6,2508.0,0.40466538]
[1724995040432,0.39865,2508.4,2508.0,0.00597538]
[1724995040736,0.39865,2508.3,2508.0,0.00597538]
[1724995041039,0.3813,2508.5,2508.2,3.60646]
[1724995041236,0.3813,2508.5,2508.3,0.39865]
[1724995041441,0.00593483,2508.6,2508.2,7.1942]
[1724995041736,0.00593483,2508.6,2508.2,3.2078]
[1724995041937,0.00593483,2508.6,2508.5,3.2078]
[1724995043137,0.00593483,2508.6,2508.5,7.59282]
[1724995043341,0.00593483,2508.6,2508.5,7.1942]
[1724995043843,0.00593483,2508.6,2508.5,7.59282]
[1724995044341,0.00593483,2508.6,2508.5,7.1942]
[1724995044541,0.00593483,2508.6,2508.5,7.59282]
[1724995044843,0.00593483,2508.6,2508.5,3.2078]
[1724995045042,3.99233483,2508.6,2508.0,3.21377538]
[1724995045240,0.00593483,2508.6,2508.0,3.21377538]
[1724995045435,0.39863,2508.5,2508.0,3.21377538]
[1724995045630,0.39864,2508.4,2508.0,3.21377538]
[1724995046138,0.78043,2508.5,2508.0,3.21377538]
[1724995046640,0.3818,2508.5,2508.1,3.2078]
[1724995046845,4.94985209,2508.4,2508.0,0.00597538]
[1724995047048,0.39868,2508.2,2508.0,0.00597538]
[1724995047243,0.39866,2508.3,2508.0,0.00597538]
[1724995047440,0.3849,2508.4,2508.0,0.00597538]
[1724995047643,0.3849,2508.4,2508.1,3.60647]
[1724995047847,0.3849,2508.4,2508.2,0.39866]
[1724995048146,0.00593483,2508.6,2508.1,3.2078]
[1724995048449,0.00593483,2508.6,2508.3,0.39864]
[1724995048835,0.00593483,2508.6,2508.4,0.39863]
[1724995049034,0.00593483,2508.6,2508.4,3.60643]
[1724995049248,0.00593483,2508.6,2508.5,4.38502]
[1724995050150,0.00593483,2508.6,2508.4,3.2078]
[1724995051852,0.00593483,2508.6,2508.5,0.39862]
[1724995052247,0.00593483,2508.6,2508.5,4.38502]
[1724995052955,0.00593483,2508.6,2508.5,10.38502]
[1724995053750,0.3576,2509.3,2509.0,0.39853]
[1724995054058,0.3576,2509.3,2509.1,3.2078]
[1724995054745,0.3576,2509.3,2508.7,3.2078]
[1724995055145,0.39853,2509.1,2508.8,40.8]
[1724995055858,0.39852,2509.2,2508.7,3.2078]
[1724995056052,0.3576,2509.3,2508.7,3.2078]
[1724995056444,0.3576,2509.3,2509.0,3.2078]
[1724995056656,4.174,2509.6,2509.2,0.39851]
[1724995056853,4.174,2509.6,2509.3,3.2078]
[1724995057053,0.39846,2509.5,2509.3,3.2078]
[1724995057250,4.174,2509.6,2509.3,3.2078]
[1724995057454,4.57245,2509.6,2509.3,3.2078]
[1724995057650,4.174,2509.6,2509.3,3.2078]
[1724995057855,3.2078,2509.8,2509.4,0.39847]
[1724995058257,3.2078,2509.8,2509.3,3.21377538]
[1724995058648,0.39844,2509.7,2509.3,3.61226538]
[1724995059151,0.39846,2509.6,2509.3,3.21377538]
[1724995059755,0.39844,2509.7,2509.3,3.61226538]
[1724995059958,0.39845,2509.6,2509.3,3.21377538]
[1724995060158,7.7439,2509.9,2509.4,0.39848]
[1724995060451,0.39844,2509.7,2509.3,3.61226538]
[1724995060655,3.5699,2509.9,2509.3,3.21377538]
[1724995060847,0.3621,2509.9,2509.3,3.21377538]
[1724995061357,0.3625,2510.4,2509.8,0.39841]
[1724995061358,0.39834,2510.3,2509.8,0.39841]
[1724995061555,0.39839,2510.0,2509.6,3.2078]
[1724995061747,3.5703,2510.4,2509.6,3.2078]
[1724995061748,0.39843,2509.7,2509.6,3.2078]
[1724995062057,0.39842,2509.8,2509.6,3.2078]
[1724995062462,0.39843,2509.7,2509.6,3.2078]
[1724995062753,4.38323,2509.7,2509.6,3.2078]
[1724995064250,0.39843,2509.7,2509.6,3.2078]
[1724995064454,4.38323,2509.7,2509.6,3.2078]
[1724995065057,0.39843,2509.7,2509.6,3.2078]
[1724995065253,0.7438,2509.9,2509.6,3.2078]
[1724995066863,0.39841,2509.8,2509.6,3.2078]
[1724995067059,0.39843,2509.7,2509.6,3.2078]
[1724995067669,0.39842,2509.8,2509.6,3.2078]
[1724995067964,1.1422,2509.9,2509.6,3.2078]
[1724995068466,0.7438,2509.9,2509.6,3.2078]
[1724995068652,1.53930516,2510.0,2509.7,0.39842]
[1724995068857,1.53930516,2510.1,2509.6,3.60624]
[1724995069063,0.39843,2509.7,2509.6,3.2078]
[1724995069463,4.38323,2509.7,2509.6,3.2078]
[1724995069966,0.39843,2509.7,2509.6,3.2078]
[1724995071359,0.3984,2509.9,2509.6,3.2078]
[1724995071566,0.39843,2509.7,2509.6,3.2078]
[1724995071859,1.53930516,2509.9,2509.6,3.2078]
[1724995072066,1.93771516,2509.9,2509.6,3.2078]
[1724995072264,0.39841,2509.9,2509.6,3.2078]
[1724995072462,1.93769516,2510.0,2509.6,3.60624]
[1724995074265,0.3984,2509.9,2509.6,3.60624]
[1724995074661,0.39839,2510.0,2509.6,3.60624]
[1724995075870,0.39839,2510.0,2509.7,0.39843]
[1724995076372,1.53930516,2510.1,2509.6,3.2078]
[1724995076670,0.39837,2510.1,2509.7,0.39841]
[1724995078668,0.39837,2510.1,2509.8,0.39841]
[1724995078870,0.39837,2510.1,2509.7,0.39842]
[1724995079270,6.11165516,2510.2,2509.6,3.2078]
[1724995079473,5.71330516,2510.2,2509.6,3.2078]
[1724995079666,4.174,2510.2,2510.0,0.39837]
[1724995079870,1.91620516,2510.3,2509.9,3.2078]
[1724995080167,0.3769,2510.3,2509.9,3.2078]
[1724995080372,4.174,2510.6,2510.5,0.3983]
[1724995080566,4.174,2510.6,2510.5,3.6061]
[1724995080765,1.90790516,2510.9,2510.7,0.39826]
[1724995080966,0.3686,2510.9,2510.7,0.39826]
[1724995081487,0.3686,2510.9,2510.6,0.39828]
[1724995081774,0.3686,2510.9,2510.5,7.7978]
[1724995081775,4.174,2511.1,2510.8,3.2078]
[1724995081968,4.174,2511.1,2510.9,0.39823]
[1724995082573,4.174,2511.1,2510.8,3.60605]
[1724995083285,3.2078,2511.5,2511.1,0.39819]
[1724995083469,2.28960516,2511.8,2511.1,3.60599]
[1724995083675,0.7503,2511.8,2511.1,3.60599]
[1724995083869,0.39817,2511.4,2510.9,40.8]
[1724995084075,5.30385077,2511.8,2510.9,41.19824]
[1724995084076,3.2078,2511.7,2510.9,41.19824]
[1724995084280,5.30385077,2511.8,2511.0,3.2078]
[1724995084580,2.28960516,2511.8,2511.0,3.2078]
[1724995084881,0.39815,2511.5,2511.0,3.2078]
[1724995085184,0.7503,2511.8,2511.3,0.39816]
[1724995085387,0.7503,2511.8,2511.3,7.7978]
[1724995085684,0.7503,2511.8,2511.4,0.39816]
[1724995085876,0.7503,2511.8,2511.4,0.39814]
[1724995086276,0.7503,2511.8,2511.6,3.2078]
[1724995086485,0.3798,2511.8,2511.6,7.1894]
[1724995086685,0.3798,2511.8,2511.6,3.2078]
[1724995087186,0.39804,2512.2,2511.6,3.60593]
[1724995087371,0.3896,2512.2,2511.9,3.2078]
[1724995087579,0.39806,2512.1,2511.9,3.2078]
[1724995088084,0.39806,2512.0,2511.9,3.2078]
[1724995088275,0.3896,2512.2,2511.9,8.19587]
[1724995088475,4.174,2512.7,2511.9,7.7978]
[1724995088681,4.174,2512.7,2512.3,0.39802]
[1724995088882,0.3896,2512.9,2512.3,0.39802]
[1724995089188,0.3896,2512.9,2512.5,3.2078]
[1724995089373,0.78753,2512.9,2512.5,3.2078]
[1724995089575,0.39794,2512.8,2512.5,3.2078]
[1724995089883,0.78753,2512.9,2512.5,3.2078]
[1724995090183,0.3896,2512.9,2512.5,3.2078]
[1724995090981,0.3896,2512.9,2512.0,3.21377538]
[1724995091186,4.4640605,2512.8,2512.0,3.21377538]
[1724995091391,0.39798,2512.6,2512.0,3.21377538]
[1724995091686,4.174,2513.1,2512.3,3.2078]
[1724995091878,0.3721,2513.0,2512.3,3.2078]
[1724995092185,0.77002,2513.0,2512.6,3.2078]
[1724995092390,0.3721,2513.0,2512.6,3.2078]
[1724995092574,3.2078,2512.8,2512.3,3.2078]
[1724995092889,0.398,2512.4,2512.3,3.2078]
[1724995093075,4.71787785,2512.7,2512.0,0.00597538]
[1724995093076,0.39805,2512.1,2512.0,0.00597538]
[1724995093473,4.28694928,2512.4,2512.0,0.00597538]
[1724995093474,0.3799,2512.4,2512.0,0.00597538]
[1724995093683,0.3799,2512.4,2512.0,3.61182538]
[1724995093889,0.39798,2512.6,2512.0,3.61182538]
[1724995094183,0.39799,2512.5,2512.0,3.21377538]
[1724995094387,4.19238064,2512.6,2512.0,3.21377538]
[1724995094577,0.39799,2512.5,2512.0,3.21377538]
[1724995094778,4.19238064,2512.6,2512.0,3.21377538]
[1724995094981,0.398,2512.5,2512.0,3.21377538]
[1724995095682,0.3566,2512.7,2512.0,3.21377538]
[1724995096282,0.39801,2512.4,2512.0,3.21377538]
[1724995096480,0.39799,2512.5,2512.0,3.61183538]
[1724995097194,0.3799,2512.9,2512.0,3.21377538]
[1724995097575,0.398,2512.5,2512.0,3.61183538]
[1724995097780,0.39798,2512.6,2512.1,0.39804]
[1724995098188,3.2078,2512.8,2512.0,3.21377538]
[1724995098487,3.2078,2512.8,2512.4,0.39799]
[1724995098689,3.2078,2512.8,2512.3,3.2078]
[1724995098993,0.77783,2512.9,2512.4,0.398]
[1724995099185,0.77783,2512.9,2512.3,3.2078]
[1724995099186,0.3799,2512.9,2512.5,0.39798]
[1724995099386,0.77002,2513.0,2512.7,0.39794]
[1724995099387,0.3721,2513.0,2512.7,0.39794]
[1724995099582,0.3721,2513.0,2512.6,3.60576]
[1724995099890,0.3721,2513.0,2512.7,4.59]
[1724995100285,0.3721,2513.0,2512.9,0.39792]
[1724995100481,4.174,2513.4,2512.9,3.2078]
[1724995100684,4.174,2513.4,2513.0,4.98791]
[1724995100994,4.174,2513.4,2513.1,0.39789]
[1724995101291,4.174,2513.4,2513.0,8.9671]
[1724995101592,4.174,2513.4,2513.0,8.5692]
[1724995101780,0.3841,2514.0,2513.3,4.59]
[1724995101985,0.3841,2514.0,2513.1,3.9792]
[1724995101986,0.3841,2514.0,2513.8,4.59]
[1724995102895,0.3841,2514.0,2513.6,3.2078]
[1724995103091,0.3841,2514.0,2513.5,4.59]
[1724995103092,0.3579,2514.3,2513.5,4.59]
[1724995103388,0.3579,2514.3,2513.6,3.2078]
[1724995103588,0.75561,2514.3,2513.6,3.2078]
[1724995104389,0.75561,2514.3,2513.6,3.60561]
[1724995104695,0.7556,2514.3,2513.6,3.60561]
[1724995104989,0.3579,2514.3,2513.7,0.39779]
[1724995105192,0.3579,2514.3,2513.8,4.59]
[1724995105392,0.3579,2514.3,2514.0,0.39774]
[1724995105689,0.3579,2514.3,2513.9,3.60556]
[1724995105893,0.3579,2514.3,2513.9,7.1854]
[1724995106287,0.3579,2514.3,2513.9,7.58316]
[1724995106486,3.2078,2515.0,2514.1,4.59]
[1724995106688,0.39767,2514.5,2514.1,4.59]
[1724995106883,3.2078,2514.7,2514.1,4.59]
[1724995107089,5.16063538,2514.9,2514.1,45.39]
[1724995107090,0.7686,2514.9,2514.1,45.39]
[1724995107299,0.7686,2514.9,2513.8,4.59]
[1724995107300,8.5664,2514.9,2513.8,4.59]
[1724995107503,0.39774,2514.1,2513.6,3.2078]
[1724995107698,0.382,2514.0,2513.6,3.2078]
[1724995108001,0.3978,2513.7,2513.6,3.2078]
[1724995108191,4.3762,2513.7,2513.6,3.2078]
[1724995108487,0.39778,2513.8,2513.6,3.2078]
[1724995108689,0.3866,2513.9,2513.6,3.2078]
[1724995108894,0.3978,2513.7,2513.6,3.2078]
[1724995109088,0.39778,2513.8,2513.6,3.2078]
[1724995109399,0.3978,2513.7,2513.6,3.2078]
[1724995109996,0.39783,2513.5,2513.4,0.00597538]
[1724995110201,4.37623,2513.5,2513.4,0.00597538]
[1724995110498,0.99466,2513.3,2512.1,44.0078]
[1724995110802,0.39797,2512.6,2512.1,3.2078]
[1724995111094,0.39799,2512.5,2512.1,3.2078]
[1724995111395,5.306,2513.2,2512.1,3.2078]
[1724995111396,0.00597538,2512.6,2512.1,3.2078]
[1724995111691,0.00597538,2512.6,2512.3,4.59]
[1724995112493,0.00597538,2512.6,2512.3,4.98802]
[1724995112693,0.00597538,2512.6,2512.4,3.60579]
[1724995113201,0.00597538,2512.6,2512.4,7.58579]
[1724995114496,0.00597538,2512.6,2512.5,4.37799]
[1724995114897,0.00597538,2512.6,2512.5,10.37799]
[1724995115198,0.00597538,2512.6,2512.5,3.98]
[1724995116192,0.00597538,2512.6,2512.5,9.98]
[1724995116599,0.00597538,2512.6,2512.5,10.37799]
[1724995116787,0.00597538,2512.6,2512.5,3.98]
[1724995117707,0.00597538,2512.6,2512.4,3.2078]
[1724995117895,0.40395538,2512.6,2512.4,3.2078]
[1724995118092,0.39803,2512.3,2512.0,4.59597538]
[1724995118292,3.98597538,2512.6,2512.0,4.59597538]
[1724995118293,0.3796,2512.5,2512.0,4.59597538]
[1724995118689,0.398,2512.4,2512.0,4.59597538]
[1724995119494,0.3796,2512.5,2512.0,4.59597538]
[1724995119997,0.39805,2512.1,2512.0,0.00597538]
[1724995120407,4.37885,2512.1,2512.0,0.00597538]
[1724995120596,9.9808,2512.1,2511.3,40.8]
[1724995120796,0.3754,2512.0,2511.1,4.9882]
[1724995121000,0.39811,2511.8,2511.2,0.39819]
[1724995121297,3.5832,2512.0,2511.2,3.2078]
[1724995121599,0.3647,2511.7,2511.3,0.00597538]
[1724995121806,3.5725,2511.7,2511.3,0.00597538]
[1724995121998,0.39816,2511.5,2511.3,0.00597538]
[1724995122192,3.5725,2511.7,2511.3,0.00597538]
[1724995122193,0.39816,2511.4,2511.3,0.00597538]
[1724995122696,4.37976,2511.4,2511.3,0.00597538]
[1724995123695,3.9816,2511.4,2511.3,0.00597538]
[1724995124202,0.3832,2511.6,2511.3,0.00597538]
[1724995127304,0.3647,2511.7,2511.3,0.00597538]
[1724995127800,0.39816,2511.4,2511.3,0.00597538]
[1724995128203,0.39822,2511.0,2510.6,4.59]
[1724995128499,9.9816,2511.4,2510.3,3.2078]
[1724995128500,3.2078,2511.2,2510.3,48.5978]
[1724995128798,0.381,2510.9,2510.6,0.39829]
[1724995129005,0.381,2510.9,2510.6,4.98829]
[1724995129404,0.381,2510.9,2510.6,4.59]
[1724995129999,0.77925,2510.9,2510.6,4.59]
[1724995130199,0.77925,2510.9,2510.5,0.00597538]
[1724995130200,0.39827,2510.7,2510.5,0.00597538]
[1724995130611,0.39826,2510.8,2510.5,0.00597538]
[1724995131115,0.381,2510.9,2510.5,0.00597538]
[1724995131406,0.381,2510.9,2510.6,4.59]
[1724995132615,0.39825,2510.8,2510.6,4.59]
[1724995132914,0.381,2510.9,2510.6,4.59]
[1724995133413,0.00597538,2511.0,2510.6,4.59]
[1724995133614,0.00597538,2511.0,2510.9,4.59]
[1724995133810,0.00597538,2511.0,2510.9,4.98824]
[1724995134004,0.00597538,2511.0,2510.9,14.5724]
[1724995134208,0.00597538,2511.0,2510.9,49.3724]
[1724995134908,4.174,2511.3,2510.9,55.3724]
[1724995135219,4.174,2511.3,2511.2,4.59]
[1724995135411,0.7726,2511.8,2511.2,4.59]
[1724995135412,0.39814,2511.6,2511.2,4.59]
[1724995135807,0.39812,2511.7,2511.2,4.59]
[1724995136007,0.00597538,2511.7,2511.2,4.59]
[1724995136411,0.39813,2511.6,2511.2,4.59]
[1724995137017,0.40409538,2511.7,2511.2,4.59]
[1724995137219,0.00597538,2511.7,2511.2,4.59]
[1724995138919,0.40408538,2511.7,2511.2,4.59]
[1724995139115,0.39813,2511.6,2511.2,4.59]
[1724995139419,0.00597538,2511.7,2511.1,3.2078]
[1724995139716,0.75414,2511.5,2511.1,3.2078]
[1724995140122,5.3338,2511.5,2510.8,3.2078]
[1724995140426,0.39825,2510.9,2510.4,8.697]
[1724995140619,0.3795,2510.8,2510.6,40.8]
[1724995140915,0.39821,2511.1,2510.6,45.39]
[1724995141106,4.174,2511.2,2510.6,45.39]
[1724995141314,4.174,2511.2,2510.5,3.21377538]
[1724995141315,0.39825,2510.9,2510.5,3.21377538]
[1724995141708,4.174,2511.2,2510.6,4.59]
[1724995141909,4.5722,2511.2,2510.9,4.59]
[1724995142516,3.2078,2511.1,2510.6,4.59]
[1724995142713,0.39829,2510.6,2510.5,0.00597538]
[1724995142924,4.38149,2510.6,2510.5,0.00597538]
[1724995143221,1.13399,2510.6,2510.5,0.00597538]
[1724995143415,0.7357,2510.6,2510.5,0.00597538]
[1724995143818,5.11719,2510.6,2510.5,0.00597538]
[1724995144124,0.39839,2510.0,2509.5,4.59]
[1724995144314,3.2078,2510.4,2509.5,4.59]
[1724995144517,0.39841,2509.9,2509.5,4.59]
[1724995145625,0.40436538,2510.0,2509.5,4.59]
[1724995145921,0.00597538,2510.0,2509.6,40.8]
[1724995146110,0.39844,2509.7,2509.4,0.00597538]
[1724995146523,0.39844,2509.7,2509.4,40.80597538]
[1724995147021,3.5779,2509.9,2509.4,0.00597538]
[1724995147216,0.76135,2509.6,2509.4,0.00597538]
[1724995147523,0.39846,2509.5,2509.4,0.00597538]
[1724995147910,0.76135,2509.6,2509.4,0.00597538]
[1724995148212,0.3629,2509.6,2509.4,0.00597538]
[1724995148821,0.39846,2509.5,2509.4,0.00597538]
[1724995149925,0.76135,2509.6,2509.4,0.00597538]
[1724995150311,0.39846,2509.5,2509.4,0.00597538]
[1724995150508,0.39849,2509.3,2509.2,3.2078]
[1724995150725,0.39857,2508.9,2508.8,3.2078]
[1724995151019,0.99632,2509.1,2508.4,7.7978]
[1724995151220,0.39859,2508.7,2508.4,7.7978]
[1724995151425,0.39858,2508.8,2508.4,7.7978]
[1724995151724,0.3832,2509.2,2508.7,4.59]
[1724995151916,0.78171,2509.2,2508.7,4.59]
[1724995152223,0.78171,2509.2,2508.7,4.98859]
[1724995152422,0.3832,2509.2,2508.8,0.39856]
[1724995152721,0.3832,2509.2,2508.8,0.39857]
[1724995153116,0.3832,2509.2,2508.9,0.39856]
[1724995153421,4.174,2509.3,2508.9,4.59]
[1724995153620,4.174,2509.3,2508.9,4.98855]
[1724995153918,4.174,2509.3,2508.7,4.59]
[1724995154223,0.39854,2509.1,2508.7,4.59]
[1724995154425,4.174,2509.3,2508.7,4.98857]
[1724995154727,0.39851,2509.2,2508.7,4.59]
[1724995155022,0.39853,2509.1,2508.7,4.59]
[1724995155232,5.17026,2509.3,2508.4,7.7978]
[1724995155424,0.39858,2508.8,2508.4,7.7978]
[1724995155819,0.3609,2508.7,2508.4,7.7978]
[1724995156030,0.3609,2508.7,2508.5,0.39861]
[1724995156522,0.3901,2509.0,2508.6,0.3986]
[1724995157220,0.3901,2509.0,2508.4,8.19642]
[1724995157417,4.174,2509.3,2508.9,3.2078]
[1724995157729,4.174,2509.3,2508.9,3.60635]
[1724995158325,4.174,2509.3,2509.2,3.2078]
[1724995158529,0.3718,2509.6,2509.1,0.39852]
[1724995158922,0.3718,2509.6,2509.0,4.59]
[1724995159122,0.3718,2509.6,2509.2,0.39851]
[1724995159350,0.3718,2509.6,2509.2,3.60631]
[1724995159524,0.3718,2509.6,2509.3,0.39849]
[1724995160125,0.3718,2509.6,2509.4,0.39848]
[1724995160934,0.3718,2509.6,2509.4,0.39847]
[1724995161128,4.17997538,2510.0,2509.5,11.7826]
[1724995161329,0.40436538,2510.0,2509.6,0.39844]
[1724995161729,0.00597538,2510.0,2509.6,41.19844]
[1724995162121,0.00597538,2510.0,2509.6,40.8]
[1724995162320,0.00597538,2510.0,2509.6,41.19844]
[1724995162525,0.00597538,2510.0,2509.6,40.8]
[1724995162831,0.00597538,2510.0,2509.2,7.7978]
[1724995162832,0.39846,2509.6,2509.2,7.7978]
[1724995163041,0.3842,2509.5,2509.2,8.19631]
[1724995163221,0.3842,2509.5,2509.2,7.7978]
[1724995163734,0.3842,2509.5,2509.2,8.19631]
[1724995163927,0.3842,2509.5,2509.3,40.8]
[1724995164135,4.76746,2509.5,2509.2,3.2078]
[1724995164430,0.78266,2509.5,2509.2,3.2078]
[1724995164624,0.39848,2509.4,2509.2,3.2078]
[1724995164932,0.39849,2509.3,2509.2,3.2078]
[1724995165528,0.3842,2509.5,2509.4,0.39848]
[1724995165934,0.3842,2509.5,2509.3,0.39849]
[1724995166641,0.3842,2509.5,2509.2,48.5978]
[1724995166838,0.3842,2509.5,2509.2,48.9963]
[1724995167341,4.57242,2509.8,2509.3,0.39848]
[1724995167635,0.39843,2509.7,2509.2,48.9963]
[1724995167832,0.78702,2509.8,2509.3,0.39849]
[1724995168032,0.78702,2509.8,2509.2,48.5978]
[1724995168033,0.78702,2509.8,2509.4,0.39848]
[1724995168230,0.39843,2509.7,2509.3,0.39848]
[1724995168430,0.39843,2509.7,2509.2,48.5978]
[1724995168630,0.78702,2509.8,2509.3,0.39848]
[1724995168840,0.78702,2509.8,2509.4,0.39848]
[1724995169535,0.3886,2509.8,2509.3,0.39848]
[1724995169931,0.39847,2509.5,2509.2,44.0078]
[1724995170525,0.39847,2509.5,2509.2,3.2078]
[1724995170934,0.39845,2509.6,2509.2,3.60631]
[1724995171240,0.39846,2509.6,2509.2,3.60631]
[1724995171431,0.3886,2509.8,2509.2,3.60631]
[1724995171738,0.39845,2509.6,2509.2,3.60631]
[1724995172335,0.39846,2509.5,2509.2,3.2078]
[1724995173234,4.20392,2509.6,2509.2,3.2078]
[1724995173534,4.26398407,2509.5,2509.2,3.2078]
[1724995173742,0.39849,2509.3,2509.2,3.2078]
[1724995174147,4.38409,2509.3,2509.2,3.2078]
[1724995174447,0.39849,2509.3,2509.2,3.2078]
[1724995174738,0.3883,2509.6,2509.2,3.2078]
[1724995174937,0.3886,2509.8,2509.3,3.44]
[1724995175341,0.3886,2509.8,2509.5,6.6478]
[1724995175644,4.17997538,2510.0,2509.5,6.6478]
[1724995175952,0.00597538,2510.0,2509.8,7.04621]
[1724995176134,0.00597538,2510.0,2509.8,3.2078]
[1724995176334,0.00597538,2510.0,2509.8,3.6062]
[1724995176840,0.3984,2509.9,2509.8,3.2078]
[1724995177047,0.39843,2509.7,2509.6,0.00597538]
[1724995177342,4.38323,2509.7,2509.6,0.00597538]
[1724995177746,4.76823,2509.7,2509.6,0.00597538]
[1724995180252,5.76431,2509.7,2509.6,0.00597538]
[1724995180546,4.76823,2509.7,2509.6,0.00597538]
[1724995181847,4.3698,2509.7,2509.6,0.00597538]
[1724995182243,0.385,2509.7,2509.6,0.00597538]
[1724995183846,0.385,2509.7,2509.6,0.40441538]
[1724995184350,0.385,2509.7,2509.6,0.00597538]
[1724995184550,0.385,2509.7,2509.6,0.40441538]
[1724995184749,0.00597538,2510.0,2509.7,0.39841]
[1724995184941,0.00597538,2510.0,2509.7,3.2078]
[1724995185245,0.00597538,2510.0,2509.8,0.39841]
[1724995185447,0.00597538,2510.0,2509.7,3.2078]
[1724995185645,0.00597538,2510.0,2509.9,3.8384]
[1724995185949,0.00597538,2510.0,2509.9,7.8224]
[1724995186144,0.00597538,2510.0,2509.9,48.6224]
[1724995187342,0.00597538,2510.0,2509.9,44.6384]
[1724995187643,0.00597538,2510.0,2509.9,44.24]
[1724995187847,0.00597538,2510.0,2509.9,3.44]
[1724995188352,0.00597538,2510.0,2509.9,3.8384]
[1724995188843,1.53930516,2510.3,2509.9,13.8224]
[1724995189044,1.53930516,2510.4,2510.2,7.04615]
[1724995189451,2.45069688,2510.6,2510.2,7.04615]
[1724995189452,1.53930516,2510.5,2510.2,7.04615]
[1724995189650,1.53930516,2510.5,2510.3,0.39833]
[1724995189651,1.53930516,2510.4,2510.3,0.39833]
[1724995189839,1.53930516,2510.5,2510.2,6.6478]
[1724995190040,1.53930516,2510.4,2510.0,3.44]
[1724995190443,1.53930516,2510.4,2510.1,0.39836]
[1724995190650,1.93763516,2510.4,2510.0,3.83837]
[1724995191051,0.39837,2510.1,2509.9,3.2078]
[1724995191242,0.78218,2510.0,2509.9,3.2078]
[1724995191751,4.76618,2510.0,2509.9,3.2078]
[1724995192450,1.53930516,2510.1,2509.9,3.2078]
[1724995192653,0.39837,2510.1,2509.9,3.2078]
[1724995192949,5.52330516,2510.1,2509.9,3.2078]
[1724995193251,0.39838,2510.0,2509.9,3.2078]
[1724995193549,1.92310516,2510.2,2509.9,3.2078]
[1724995193756,1.92310516,2510.2,2509.9,3.60619]
[1724995194048,0.3838,2510.2,2509.9,3.60619]
[1724995194239,0.78215,2510.2,2509.9,3.2078]
[1724995194441,2.32145516,2510.2,2509.9,3.2078]
[1724995194648,1.53930516,2510.1,2509.9,3.2078]
[1724995195051,0.39838,2510.0,2509.9,3.2078]
[1724995196047,1.93767516,2510.1,2509.9,3.2078]
[1724995196551,0.39838,2510.0,2509.6,6.65377538]
[1724995196752,0.39838,2510.0,2509.6,7.05221538]
[1724995196952,2.32145516,2510.2,2509.8,0.39841]
[1724995197147,1.93767516,2510.1,2509.7,0.39842]
[1724995197354,1.93767516,2510.1,2509.6,6.65377538]
[1724995197355,1.53930516,2510.0,2509.6,6.65377538]
[1724995197655,0.39843,2509.7,2509.6,6.65377538]
[1724995197841,0.39842,2509.8,2509.6,3.21377538]
[1724995198042,0.3984,2509.9,2509.6,3.21377538]
[1724995198348,0.39842,2509.8,2509.6,3.21377538]
[1724995198548,0.3984,2509.9,2509.6,3.21377538]
[1724995200051,1.93769516,2510.0,2509.6,7.05221538]